bitfinex-derivatives/quotes_BTCF0:USTF0_20241213
["timestamp","ask_amount","ask_price","bid_price","bid_amount"]
[1734062096711,0.050084,99817.0,99816.0,0.30000892]
[1734062096922,0.050084,99817.0,99816.0,0.60376599]
[1734062097104,0.050084,99817.0,99816.0,0.58000892]
[1734062097306,0.15026783,99817.0,99816.0,0.8838824]
[1734062098214,0.15726783,99817.0,99816.0,0.6412164]
[1734062098415,0.15726783,99817.0,99816.0,0.88383377]
[1734062098816,0.15726783,99817.0,99816.0,0.8837738]
[1734062099205,0.15726783,99817.0,99816.0,0.58381351]
[1734062099515,0.15826783,99817.0,99816.0,0.64315622]
[1734062099716,0.15826783,99817.0,99816.0,0.88598848]
[1734062100012,0.15826783,99817.0,99816.0,0.6433714]
[1734062100212,0.15826783,99817.0,99816.0,0.88597767]
[1734062100412,0.15826783,99817.0,99816.0,0.66332222]
[1734062100711,0.51906783,99817.0,99816.0,0.30195136]
[1734062100915,0.51906783,99817.0,99816.0,0.002]
[1734062101114,0.66918604,99817.0,99816.0,0.002]
[1734062101307,0.56777907,99817.0,99816.0,0.18002858]
[1734062101507,0.050084,99816.0,99815.0,0.18002858]
[1734062101719,0.050085,99815.0,99814.0,0.18002858]
[1734062101914,0.050087,99811.0,99810.0,0.24002641]
[1734062102518,0.050087,99810.0,99809.0,0.24002641]
[1734062103213,0.18347786,99810.0,99809.0,0.24002641]
[1734062103411,0.18347786,99810.0,99806.0,0.28]
[1734062103412,0.050088,99809.0,99808.0,0.24002641]
[1734062103819,0.14017905,99809.0,99808.0,0.24002641]
[1734062104005,0.24036991,99809.0,99808.0,0.24002641]
[1734062104408,0.15027886,99809.0,99808.0,0.24002641]
[1734062104710,0.24036991,99809.0,99808.0,0.24002641]
[1734062104927,0.050088,99808.0,99806.0,0.52002641]
[1734062105128,0.050089,99807.0,99806.0,0.52002641]
[1734062105421,0.050089,99807.0,99806.0,0.51970733]
[1734062105622,0.15028086,99807.0,99806.0,0.51970733]
[1734062105924,0.15028086,99807.0,99806.0,0.519706]
[1734062106126,0.15028086,99807.0,99806.0,0.28]
[1734062106527,0.15128086,99807.0,99806.0,0.28]
[1734062106728,0.15828086,99807.0,99806.0,0.28]
[1734062108829,0.15828086,99807.0,99806.0,0.5196125]
[1734062109030,0.15828086,99807.0,99806.0,0.28]
[1734062109231,0.15828086,99807.0,99806.0,0.5196125]
[1734062109828,0.15828086,99807.0,99806.0,0.28]
[1734062110325,0.15828086,99807.0,99806.0,0.5196125]
[1734062110530,0.15828086,99807.0,99806.0,0.28]
[1734062110728,0.15828086,99807.0,99806.0,0.5196125]
[1734062111029,0.15828086,99807.0,99806.0,0.28]
[1734062111722,0.15828086,99807.0,99806.0,0.5196125]
[1734062111928,0.15828086,99807.0,99806.0,0.28]
[1734062112933,0.15828086,99807.0,99806.0,0.5196125]
[1734062114027,0.15828086,99807.0,99806.0,0.28]
[1734062114519,0.15828086,99807.0,99806.0,0.5196125]
[1734062115127,0.16824309,99807.0,99806.0,0.5196125]
[1734062115924,0.16824309,99807.0,99806.0,0.28]
[1734062116119,0.16824309,99807.0,99806.0,0.5196125]
[1734062117430,0.16824309,99807.0,99806.0,0.28]
[1734062117925,0.16824309,99807.0,99806.0,0.51948804]
[1734062118431,0.16824309,99807.0,99806.0,0.51949025]
[1734062119126,0.16824309,99807.0,99806.0,0.23949025]
[1734062119327,0.050089,99806.0,99805.0,0.23950794]
[1734062119531,0.050089,99806.0,99805.0,0.51950776]
[1734062119923,0.15028287,99806.0,99805.0,0.23950776]
[1734062120128,0.15028287,99806.0,99800.0,0.00150276]
[1734062120129,0.10019387,99806.0,99800.0,0.00150276]
[1734062120331,0.050092,99801.0,99800.0,0.00150276]
[1734062121039,0.15028687,99801.0,99800.0,0.00150276]
[1734062121233,0.15028687,99801.0,99800.0,0.60549307]
[1734062121434,0.15028687,99801.0,99800.0,0.30623144]
[1734062122134,0.15028687,99801.0,99800.0,0.35832344]
[1734062122338,0.10019487,99801.0,99800.0,0.35832344]
[1734062122634,0.05009,99804.0,99800.0,0.41555543]
[1734062122839,0.05009,99804.0,99802.0,0.29942382]
[1734062123331,0.10019839,99803.0,99802.0,0.29942382]
[1734062123536,0.10019839,99803.0,99802.0,0.60334904]
[1734062124132,0.10019839,99803.0,99802.0,0.29942382]
[1734062124326,0.10019839,99803.0,99802.0,0.60303552]
[1734062124736,0.10119839,99803.0,99802.0,0.60303552]
[1734062125234,0.10219839,99803.0,99802.0,0.3056117]
[1734062128837,0.10219839,99803.0,99802.0,0.002]
[1734062129144,0.10219839,99803.0,99802.0,0.30566545]
[1734062129641,0.10219839,99803.0,99802.0,0.36294761]
[1734062132042,0.10219839,99803.0,99788.0,0.36090074]
[1734062132337,0.10219839,99803.0,99775.0,0.3608]
[1734062132338,0.050104,99776.0,99775.0,0.001]
[1734062132541,0.050104,99776.0,99766.0,0.050109]
[1734062132542,0.12024004,99776.0,99766.0,0.050109]
[1734062132735,0.12016974,99768.0,99766.0,0.050109]
[1734062133635,0.12016974,99772.0,99766.0,0.050109]
[1734062133841,0.12016974,99772.0,99769.0,0.17979561]
[1734062134038,0.22040328,99772.0,99769.0,0.17979561]
[1734062134443,0.15033954,99772.0,99767.0,0.17979561]
[1734062134748,0.08999361,99768.0,99767.0,0.17979561]
[1734062135232,0.08999361,99768.0,99766.0,0.22990461]
[1734062135434,0.002,99772.0,99766.0,0.050109]
[1734062135435,0.08999361,99770.0,99766.0,0.050109]
[1734062136037,0.08999361,99770.0,99768.0,0.050108]
[1734062136239,0.14010061,99771.0,99769.0,0.050107]
[1734062136442,0.050107,99771.0,99769.0,0.050107]
[1734062136642,0.10023253,99770.0,99769.0,0.050107]
[1734062137031,0.10123253,99770.0,99769.0,0.050107]
[1734062138040,0.10223253,99770.0,99769.0,0.050107]
[1734062147147,0.002,99770.0,99769.0,0.050107]
[1734062147546,0.002,99770.0,99769.0,0.330107]
[1734062149955,0.002,99770.0,99769.0,0.330108]
[1734062150457,0.001,99770.0,99769.0,0.330108]
[1734062150754,0.002,99770.0,99769.0,0.330108]
[1734062151347,0.08999361,99789.0,99785.0,0.0501]
[1734062151547,0.08999361,99792.0,99787.0,0.3608]
[1734062151748,0.08999361,99800.0,99799.0,0.050093]
[1734062151944,0.08999361,99802.0,99799.0,0.3608]
[1734062152146,0.08980559,99802.0,99799.0,0.3608]
[1734062152347,0.08980559,99802.0,99801.0,0.050092]
[1734062152555,0.06326184,99810.0,99799.0,0.3608]
[1734062152556,0.08981817,99803.0,99799.0,0.3608]
[1734062152855,0.15308001,99810.0,99806.0,0.050089]
[1734062153157,0.09990544,99810.0,99807.0,0.330088]
[1734062153455,0.10019236,99809.0,99807.0,0.330088]
[1734062154063,0.10019236,99809.0,99807.0,0.050088]
[1734062156055,0.10019236,99809.0,99807.0,0.089588]
[1734062156460,0.10119236,99809.0,99807.0,0.094588]
[1734062156661,0.10219236,99809.0,99807.0,0.094588]
[1734062163454,0.15228036,99809.0,99807.0,0.014]
[1734062163655,0.050091,99803.0,99799.0,0.3608]
[1734062164564,0.10019939,99802.0,99799.0,0.3608]
[1734062164863,0.10019939,99802.0,99801.0,0.050091]
[1734062166256,0.10119939,99802.0,99801.0,0.056091]
[1734062166563,0.10219939,99802.0,99801.0,0.056091]
[1734062171564,0.19196629,99802.0,99801.0,0.006]
[1734062172762,0.10219939,99802.0,99801.0,0.006]
[1734062176463,0.22236913,99802.0,99801.0,0.006]
[1734062176766,0.10219939,99802.0,99801.0,0.006]
[1734062179564,0.10219939,99802.0,99801.0,0.286]
[1734062182174,0.15091166,99802.0,99801.0,0.006]
[1734062182373,0.21371166,99802.0,99801.0,0.006]
[1734062183074,0.050092,99801.0,99794.0,0.28]
[1734062183268,0.050095,99795.0,99794.0,0.28]
[1734062183468,0.050099,99786.0,99784.0,0.17979561]
[1734062183671,0.15015064,99787.0,99781.0,0.17979561]
[1734062183975,0.15015064,99790.0,99785.0,0.6408]
[1734062184176,0.15015064,99790.0,99788.0,0.050098]
[1734062184370,0.20024764,99791.0,99788.0,0.050098]
[1734062184777,0.15015064,99790.0,99788.0,0.050098]
[1734062184978,0.20024764,99791.0,99788.0,0.050098]
[1734062185272,0.001,99790.0,99788.0,0.050098]
[1734062185582,0.001,99790.0,99788.0,0.051098]
[1734062185777,0.050098,99789.0,99788.0,0.051098]
[1734062185971,0.15030894,99789.0,99788.0,0.001]
[1734062187074,0.050099,99786.0,99785.0,0.64172]
[1734062187277,0.050099,99786.0,99785.0,0.6408]
[1734062188770,0.051099,99786.0,99785.0,0.6408]
[1734062188981,0.052099,99786.0,99785.0,0.6418]
[1734062189477,0.17214478,99786.0,99785.0,0.6418]
[1734062189681,0.052099,99786.0,99785.0,0.6418]
[1734062195889,0.052099,99786.0,99785.0,0.281]
[1734062196090,0.052099,99786.0,99785.0,0.6418]
[1734062197986,0.052099,99786.0,99785.0,0.3618]
[1734062198180,0.052099,99786.0,99785.0,0.001]
[1734062198386,0.15231396,99786.0,99785.0,0.001]
[1734062198783,0.27236649,99786.0,99785.0,0.001]
[1734062200189,0.15231396,99786.0,99785.0,0.001]
[1734062201997,0.15231396,99786.0,99785.0,0.281]
[1734062204386,0.3024646,99786.0,99785.0,0.281]
[1734062204986,0.3024646,99786.0,99785.0,0.001]
[1734062204987,0.15231396,99786.0,99785.0,0.001]
[1734062205389,0.20103615,99786.0,99785.0,0.001]
[1734062207396,0.20003615,99786.0,99785.0,0.001]
[1734062207595,0.20103615,99786.0,99785.0,0.001]
[1734062208189,0.20103615,99786.0,99774.0,0.031]
[1734062208396,0.050105,99774.0,99773.0,0.3608]
[1734062208600,0.17018756,99774.0,99773.0,0.3608]
[1734062208899,0.050105,99774.0,99773.0,0.6408]
[1734062209099,0.15031996,99774.0,99773.0,0.6408]
[1734062210791,0.15231996,99774.0,99773.0,0.6418]
[1734062211799,0.15231996,99774.0,99773.0,0.281]
[1734062213707,0.15131996,99774.0,99773.0,0.281]
[1734062213903,0.15231996,99774.0,99773.0,0.281]
[1734062215404,0.1625316,99774.0,99773.0,0.281]
[1734062230616,0.31262807,99774.0,99773.0,0.281]
[1734062232306,0.1625316,99774.0,99773.0,0.281]
[1734062233021,0.15231996,99774.0,99773.0,0.281]
[1734062233207,0.1522041,99774.0,99773.0,0.331106]
[1734062233407,0.002,99774.0,99773.0,0.331106]
[1734062236513,0.002,99774.0,99773.0,0.38850657]
[1734062240529,0.002,99774.0,99773.0,0.10850657]
[1734062241518,0.052105,99774.0,99773.0,0.10850657]
[1734062243313,0.052105,99774.0,99773.0,0.051106]
[1734062243511,0.052105,99774.0,99773.0,0.23140896]
[1734062243738,0.15233201,99774.0,99773.0,0.001]
[1734062243927,0.30253611,99774.0,99773.0,0.001]
[1734062244411,0.15233201,99774.0,99773.0,0.001]
[1734062244820,0.30253611,99774.0,99773.0,0.001]
[1734062245219,0.30253611,99774.0,99773.0,0.05843372]
[1734062245829,0.15233201,99774.0,99773.0,0.23874142]
[1734062246212,0.15233201,99774.0,99773.0,0.05843372]
[1734062246213,0.30253611,99774.0,99773.0,0.05843372]
[1734062246723,0.30253611,99774.0,99773.0,0.1813077]
[1734062246921,0.15233201,99774.0,99773.0,0.001]
[1734062247126,0.15233201,99774.0,99773.0,0.281]
[1734062248522,0.16216565,99774.0,99773.0,0.281]
[1734062250126,0.21089214,99774.0,99773.0,0.281]
[1734062254123,0.21089286,99774.0,99773.0,0.281]
[1734062254928,0.21089286,99774.0,99767.0,0.00150325]
[1734062254929,0.050108,99768.0,99767.0,0.00150325]
[1734062255425,0.09883777,99768.0,99767.0,0.00150325]
[1734062255630,0.19906478,99768.0,99767.0,0.00150325]
[1734062255834,0.15033501,99768.0,99767.0,0.00150325]
[1734062256224,0.19906554,99768.0,99767.0,0.00150325]
[1734062256419,0.19906624,99768.0,99767.0,0.00150325]
[1734062256625,0.20006624,99768.0,99767.0,0.00150325]
[1734062257027,0.20106624,99768.0,99767.0,0.00150325]
[1734062258619,0.20106618,99768.0,99767.0,0.00150325]
[1734062260331,0.15233501,99768.0,99767.0,0.00150325]
[1734062260940,0.15233501,99768.0,99766.0,0.3608]
[1734062261129,0.18324706,99767.0,99766.0,0.3608]
[1734062261827,0.2834811,99767.0,99766.0,0.3608]
[1734062262437,0.2834811,99767.0,99755.0,0.23997472]
[1734062262438,0.1820662,99767.0,99755.0,0.18031815]
[1734062262633,0.15013188,99761.0,99752.0,0.18031815]
[1734062262836,0.15013188,99758.0,99750.0,0.21061815]
[1734062263028,0.04873593,99760.0,99750.0,0.0303]
[1734062263029,0.17023284,99751.0,99750.0,0.0303]
[1734062263335,0.050117,99751.0,99750.0,0.0303]
[1734062263529,0.17020536,99751.0,99750.0,0.0303]
[1734062263837,0.27045548,99751.0,99750.0,0.0303]
[1734062264139,0.15036712,99751.0,99750.0,0.0303]
[1734062264434,0.15136712,99751.0,99750.0,0.0303]
[1734062264627,0.27145739,99751.0,99750.0,0.0303]
[1734062264827,0.27245739,99751.0,99750.0,0.0303]
[1734062265433,0.16236998,99751.0,99750.0,0.0303]
[1734062267135,0.15236712,99751.0,99750.0,0.0303]
[1734062267438,0.19225483,99751.0,99750.0,0.0303]
[1734062267626,0.09200471,99751.0,99750.0,0.0303]
[1734062268330,0.002,99751.0,99750.0,0.0303]
[1734062271929,0.09200471,99751.0,99750.0,0.0303]
[1734062277148,0.002,99751.0,99750.0,0.0303]
[1734062278245,0.09200471,99751.0,99750.0,0.0303]
[1734062278438,0.002,99751.0,99750.0,0.0303]
[1734062278634,0.09202959,99751.0,99750.0,0.0303]
[1734062279442,0.09202959,99751.0,99750.0,0.21050834]
[1734062279443,0.002,99751.0,99750.0,0.21050834]
[1734062279943,0.002,99751.0,99750.0,0.0303]
[1734062280337,0.002,99751.0,99750.0,0.21050834]
[1734062280738,0.002,99751.0,99750.0,0.0303]
[1734062280943,0.002,99751.0,99750.0,0.21050834]
[1734062282436,0.002,99751.0,99750.0,0.0303]
[1734062288439,0.002,99751.0,99750.0,0.08762673]
[1734062289044,0.002,99751.0,99750.0,0.09745803]
[1734062289453,0.12209027,99751.0,99750.0,0.09745803]
[1734062289645,0.12209027,99751.0,99750.0,0.08762673]
[1734062290043,0.002,99751.0,99750.0,0.08762673]
[1734062290243,0.12209027,99751.0,99750.0,0.08762673]
[1734062290449,0.002,99751.0,99750.0,0.0303]
[1734062290753,0.002,99751.0,99750.0,0.08764022]
[1734062292346,0.002,99751.0,99750.0,0.32761494]
[1734062292953,0.002,99751.0,99750.0,0.08764022]
[1734062293453,0.002,99751.0,99750.0,0.32761494]
[1734062297152,0.002,99751.0,99750.0,0.68841494]
[1734062298353,0.002,99751.0,99750.0,0.44844022]
[1734062298653,0.002,99751.0,99750.0,0.49855722]
[1734062298846,0.002,99751.0,99750.0,0.73889727]
[1734062299049,0.002,99751.0,99750.0,0.49855722]
[1734062300255,0.002,99751.0,99750.0,0.46825722]
[1734062300455,0.15236712,99751.0,99750.0,0.41820778]
[1734062300958,0.29740273,99751.0,99750.0,0.41820778]
[1734062301155,0.29740273,99751.0,99750.0,0.3608]
[1734062301543,0.29740273,99751.0,99750.0,0.54108413]
[1734062302255,0.29740273,99751.0,99750.0,0.3608]
[1734062302759,0.30765496,99751.0,99750.0,0.3608]
[1734062303769,0.30765496,99751.0,99749.0,0.18028413]
[1734062304060,0.050119,99747.0,99746.0,0.18028413]
[1734062304361,0.20045074,99747.0,99746.0,0.18028413]
[1734062304654,0.15036912,99747.0,99746.0,0.18028413]
[1734062305253,0.15036912,99747.0,99746.0,0.1802066]
[1734062305753,0.10225012,99747.0,99744.0,0.1802066]
[1734062306057,0.05012,99745.0,99744.0,0.1802066]
[1734062306249,0.05012,99745.0,99741.0,0.60115735]
[1734062306444,0.05012,99745.0,99741.0,0.3608]
[1734062306445,0.12022521,99742.0,99741.0,0.3608]
[1734062306650,0.12022521,99742.0,99741.0,0.41818453]
[1734062307145,0.22048287,99742.0,99741.0,0.65854188]
[1734062307361,0.22048287,99742.0,99741.0,0.46205581]
[1734062307362,0.10025766,99742.0,99741.0,0.46205581]
[1734062307552,0.10025766,99742.0,99741.0,0.41818453]
[1734062307856,0.17034621,99742.0,99741.0,0.41818453]
[1734062308058,0.27160537,99742.0,99741.0,0.41818453]
[1734062308254,0.27260537,99742.0,99741.0,0.41818453]
[1734062308650,0.15238016,99742.0,99741.0,0.41818453]
[1734062311062,0.27260537,99742.0,99741.0,0.41818453]
[1734062311270,0.15238016,99742.0,99741.0,0.41818453]
[1734062311762,0.27260537,99742.0,99741.0,0.41818453]
[1734062311965,0.27260537,99742.0,99741.0,0.60115735]
[1734062313470,0.002,99742.0,99741.0,0.3608]
[1734062313651,0.002,99742.0,99741.0,0.3914]
[1734062316369,0.09214254,99742.0,99741.0,0.492634]
[1734062316665,0.002,99742.0,99741.0,0.492634]
[1734062316865,0.09214254,99742.0,99741.0,0.492634]
[1734062317074,0.002,99742.0,99741.0,0.44876411]
[1734062317258,0.002,99742.0,99741.0,0.74743385]
[1734062317459,0.002,99742.0,99741.0,0.99547071]
[1734062318967,0.002,99742.0,99741.0,0.74743385]
[1734062319866,0.002,99742.0,99741.0,0.99569642]
[1734062320363,0.002,99742.0,99741.0,0.697054]
[1734062320567,0.22259394,99764.0,99741.0,0.99720859]
[1734062320568,0.12022521,99751.0,99741.0,0.99720859]
[1734062320867,0.12022521,99759.0,99756.0,0.050114]
[1734062321067,0.10025916,99762.0,99760.0,0.050112]
[1734062321068,0.22048437,99762.0,99760.0,0.050112]
[1734062321266,0.12022521,99764.0,99761.0,0.05736411]
[1734062321563,0.12022521,99765.0,99762.0,0.10747511]
[1734062321866,0.06326184,99770.0,99761.0,0.17997786]
[1734062321867,0.12172916,99763.0,99761.0,0.17997786]
[1734062322071,0.22196772,99763.0,99761.0,0.17997786]
[1734062322265,0.22196772,99763.0,99759.0,0.17997786]
[1734062322564,0.10174251,99763.0,99760.0,0.23730317]
[1734062322770,0.12011761,99761.0,99758.0,0.3608]
[1734062323174,0.12011761,99762.0,99758.0,0.3608]
[1734062323469,0.22035718,99762.0,99758.0,0.3608]
[1734062324059,0.22035718,99762.0,99758.0,0.410913]
[1734062324260,0.10123957,99762.0,99758.0,0.412913]
[1734062324869,0.22135718,99762.0,99758.0,0.412913]
[1734062325070,0.22135718,99762.0,99759.0,0.001]
[1734062325767,0.22235718,99762.0,99758.0,0.414833]
[1734062325969,0.22235718,99762.0,99758.0,0.413913]
[1734062326971,0.22235718,99762.0,99759.0,0.001]
[1734062327161,0.12011761,99761.0,99759.0,0.001]
[1734062327358,0.10223957,99762.0,99759.0,0.001]
[1734062327359,0.22235718,99762.0,99759.0,0.001]
[1734062327573,0.12211761,99762.0,99758.0,0.411913]
[1734062327765,0.10024057,99761.0,99758.0,0.411913]
[1734062328166,0.10024057,99761.0,99759.0,0.001]
[1734062328365,0.10124057,99761.0,99759.0,0.001]
[1734062328574,0.22135818,99761.0,99759.0,0.001]
[1734062328765,0.10124057,99761.0,99759.0,0.001]
[1734062329163,0.22135818,99761.0,99759.0,0.001]
[1734062329665,0.22135818,99761.0,99758.0,0.410913]
[1734062329869,0.050112,99760.0,99758.0,0.001]
[1734062330068,0.083012,99760.0,99758.0,0.001]
[1734062330268,0.0329,99760.0,99754.0,0.17989159]
[1734062330578,0.050115,99755.0,99753.0,0.17989159]
[1734062330778,0.12006483,99754.0,99753.0,0.17989159]
[1734062331275,0.22030842,99754.0,99753.0,0.17989159]
[1734062331680,0.22030842,99754.0,99753.0,0.17993247]
[1734062331681,0.27042342,99754.0,99753.0,0.17993247]
[1734062331975,0.27042342,99754.0,99751.0,0.050117]
[1734062331976,0.050116,99753.0,99751.0,0.050117]
[1734062332772,0.22031193,99752.0,99745.0,0.05012]
[1734062332979,0.050117,99750.0,99745.0,0.05012]
[1734062333369,0.15036661,99749.0,99745.0,0.05012]
[1734062333673,0.050118,99748.0,99745.0,0.05012]
[1734062334069,0.15037164,99748.0,99745.0,0.05012]
[1734062334264,0.15037164,99748.0,99745.0,0.05112]
[1734062334465,0.050118,99748.0,99745.0,0.05112]
[1734062334664,0.15037264,99747.0,99745.0,0.05012]
[1734062334872,0.15037264,99747.0,99745.0,0.05112]
[1734062335070,0.050119,99747.0,99745.0,0.05112]
[1734062335376,0.10025414,99746.0,99745.0,0.05112]
[1734062335767,0.10025414,99746.0,99745.0,0.001]
[1734062335973,0.22031897,99746.0,99745.0,0.001]
[1734062336165,0.22031897,99746.0,99740.0,0.21273247]
[1734062336474,0.27043797,99746.0,99745.0,0.001]
[1734062336871,0.27143797,99746.0,99745.0,0.001]
[1734062337269,0.27143797,99746.0,99741.0,0.050122]
[1734062337470,0.27243797,99746.0,99741.0,0.050122]
[1734062337880,0.27143797,99746.0,99741.0,0.050122]
[1734062338080,0.27243797,99746.0,99745.0,0.001]
[1734062339376,0.27143797,99746.0,99741.0,0.050122]
[1734062339580,0.27143797,99746.0,99741.0,0.051122]
[1734062339779,0.27243797,99746.0,99741.0,0.051122]
[1734062339972,0.22131897,99746.0,99741.0,0.050122]
[1734062340172,0.15237314,99746.0,99745.0,0.001]
[1734062340473,0.15237314,99746.0,99741.0,0.050122]
[1734062340474,0.10125414,99746.0,99741.0,0.050122]
[1734062340679,0.22233851,99746.0,99741.0,0.051122]
[1734062340979,0.050121,99744.0,99741.0,0.051122]
[1734062341185,0.050121,99744.0,99741.0,0.050122]
[1734062341379,0.050121,99743.0,99741.0,0.050122]
[1734062341581,0.15037815,99743.0,99741.0,0.050122]
[1734062341977,0.050121,99743.0,99741.0,0.050122]
[1734062342683,0.050122,99741.0,99739.0,0.3608]
[1734062343973,0.051122,99741.0,99739.0,0.3618]
[1734062344580,0.052122,99741.0,99739.0,0.3618]
[1734062345177,0.052122,99741.0,99739.0,0.001]
[1734062351091,0.052122,99741.0,99739.0,0.411922]
[1734062351383,0.002,99741.0,99739.0,0.411922]
[1734062352181,0.002,99741.0,99739.0,0.59185447]
[1734062353893,0.002,99741.0,99740.0,0.54073247]
[1734062354391,0.002,99741.0,99740.0,0.3608]
[1734062355081,0.002,99741.0,99740.0,0.60086102]
[1734062355479,0.002,99741.0,99740.0,0.3608]
[1734062355993,0.001,99741.0,99740.0,0.3608]
[1734062356189,0.002,99741.0,99740.0,0.3618]
[1734062356394,0.002,99741.0,99740.0,0.41906305]
[1734062356888,0.002,99741.0,99740.0,0.3618]
[1734062357091,0.002,99741.0,99740.0,0.41906655]
[1734062357288,0.050116,99754.0,99750.0,0.050117]
[1734062357487,0.050116,99754.0,99753.0,0.3608]
[1734062358285,0.1503631,99754.0,99753.0,0.3608]
[1734062358792,0.1513631,99754.0,99753.0,0.3608]
[1734062359184,0.1523631,99754.0,99753.0,0.3628]
[1734062361090,0.1523631,99754.0,99753.0,0.37270774]
[1734062362481,0.1523631,99754.0,99753.0,0.3628]
[1734062368289,0.1022471,99754.0,99753.0,0.3628]
[1734062377894,0.22240583,99754.0,99753.0,0.3628]
[1734062378092,0.22240583,99754.0,99753.0,0.54267896]
[1734062378093,0.002,99754.0,99753.0,0.54267896]
[1734062378394,0.002,99754.0,99753.0,0.42006912]
[1734062379499,0.002,99754.0,99753.0,0.45156912]
[1734062380692,0.002,99754.0,99753.0,0.3943]
[1734062380693,0.12215873,99754.0,99753.0,0.3943]
[1734062381496,0.002,99754.0,99753.0,0.3943]
[1734062381700,0.12215873,99754.0,99753.0,0.45157544]
[1734062383207,0.002,99754.0,99753.0,0.45157544]
[1734062386211,0.002,99754.0,99753.0,0.3943]
[1734062387499,0.002,99754.0,99753.0,0.4515922]
[1734062388712,0.002,99754.0,99753.0,0.0907922]
[1734062388905,0.002,99754.0,99753.0,0.4515922]
[1734062393509,0.002,99754.0,99753.0,0.0907922]
[1734062393716,0.002,99754.0,99753.0,0.4515922]
[1734062401339,0.002,99754.0,99753.0,0.5017082]
[1734062404737,0.002,99754.0,99753.0,0.7488282]
[1734062406344,0.002,99754.0,99753.0,0.7173282]
[1734062406645,0.002,99754.0,99753.0,0.51407075]
[1734062406842,0.002,99754.0,99753.0,0.412916]
[1734062407047,0.002,99754.0,99753.0,0.5141009]
[1734062408537,0.002,99754.0,99753.0,0.47023667]
[1734062414653,0.07210825,99755.0,99753.0,0.77023667]
[1734062414840,0.18037888,99774.0,99769.0,0.050108]
[1734062415049,0.0308,99788.0,99786.0,0.050099]
[1734062415353,0.1310466,99788.0,99786.0,0.050099]
[1734062415542,0.080898,99788.0,99786.0,0.050099]
[1734062415747,0.1002466,99787.0,99786.0,0.050099]
[1734062416346,0.1002466,99787.0,99786.0,0.054099]
[1734062416943,0.1012466,99787.0,99786.0,0.054099]
[1734062417147,0.1012466,99787.0,99786.0,0.004]
[1734062417753,0.1012466,99787.0,99786.0,0.008]
[1734062418945,0.1102466,99787.0,99786.0,0.005]
[1734062419447,0.1102466,99787.0,99786.0,0.007]
[1734062419856,0.1092466,99787.0,99786.0,0.001]
[1734062420153,0.1102466,99787.0,99786.0,0.008]
[1734062421546,0.1102466,99787.0,99786.0,0.058099]
[1734062422263,0.1092466,99787.0,99786.0,0.051099]
[1734062422564,0.1102466,99787.0,99786.0,0.058099]
[1734062422947,0.1102466,99787.0,99786.0,0.059099]
[1734062423562,0.1102466,99787.0,99786.0,0.060099]
[1734062424557,0.1012466,99787.0,99786.0,0.063099]
[1734062426855,0.001,99787.0,99786.0,0.094399]
[1734062429769,0.001,99787.0,99786.0,0.013]
[1734062429770,0.051099,99787.0,99786.0,0.013]
[1734062429954,0.15131295,99787.0,99786.0,0.013]
[1734062430561,0.15131295,99787.0,99783.0,0.19139]
[1734062430562,0.10121395,99787.0,99783.0,0.19139]
[1734062430766,0.4109,99784.0,99783.0,0.19139]
[1734062431366,0.51111696,99784.0,99783.0,0.19139]
[1734062431771,0.51111696,99784.0,99783.0,0.19639]
[1734062432454,0.51111696,99784.0,99783.0,0.20039]
[1734062433160,0.51111696,99784.0,99783.0,0.19939]
[1734062433362,0.050105,99774.0,99761.0,0.22988896]
[1734062433557,0.050105,99774.0,99761.0,0.050112]
[1734062433760,0.050111,99763.0,99761.0,0.050112]
[1734062434664,0.10023856,99762.0,99761.0,0.050112]
[1734062435168,0.10023856,99762.0,99759.0,0.41607]
[1734062435360,0.15035056,99762.0,99759.0,0.41607]
[1734062435556,0.050112,99762.0,99759.0,0.41607]
[1734062435757,0.06326184,99771.0,99759.0,0.41607]
[1734062435966,0.10023907,99761.0,99759.0,0.41607]
[1734062436163,0.050111,99763.0,99759.0,0.41607]
[1734062436360,0.10023555,99760.0,99759.0,0.41607]
[1734062436773,0.001,99762.0,99761.0,0.001]
[1734062436969,0.10123555,99762.0,99761.0,0.001]
[1734062437176,0.001,99762.0,99761.0,0.001]
[1734062437561,0.10123907,99762.0,99761.0,0.001]
[1734062437762,0.001,99760.0,99759.0,0.41699]
[1734062438068,0.001,99760.0,99759.0,0.41607]
[1734062438476,0.10124107,99760.0,99759.0,0.41607]
[1734062439169,0.10224107,99760.0,99759.0,0.41607]
[1734062439367,0.10224107,99760.0,99759.0,0.466183]
[1734062439673,0.10124107,99760.0,99759.0,0.466183]
[1734062440365,0.10224107,99760.0,99759.0,0.467183]
[1734062446259,0.08991506,99777.0,99759.0,0.467183]
[1734062446464,0.050103,99778.0,99777.0,0.050104]
[1734062446971,0.15034407,99778.0,99777.0,0.050104]
[1734062447675,0.10024107,99778.0,99777.0,0.050104]
[1734062447976,0.08991506,99787.0,99785.0,0.0501]
[1734062448179,0.050099,99787.0,99785.0,0.0501]
[1734062448473,0.050099,99787.0,99778.0,0.0307]
[1734062448474,0.10022299,99783.0,99778.0,0.0307]
[1734062448669,0.050099,99787.0,99778.0,0.0307]
[1734062448974,0.10022299,99786.0,99778.0,0.0307]
[1734062449273,0.050099,99787.0,99778.0,0.0307]
[1734062449477,0.10021797,99785.0,99778.0,0.0307]
[1734062449663,0.059099,99787.0,99778.0,0.0307]
[1734062449860,0.059099,99787.0,99784.0,0.0501]
[1734062450064,0.08991506,99785.0,99784.0,0.0501]
[1734062450274,0.08988858,99785.0,99784.0,0.0501]
[1734062450459,0.08988874,99785.0,99784.0,0.0501]
[1734062450666,0.0501,99784.0,99783.0,0.02908]
[1734062451374,0.15031696,99784.0,99783.0,0.02908]
[1734062451968,0.15131696,99784.0,99783.0,0.03808]
[1734062453177,0.15031696,99784.0,99783.0,0.02908]
[1734062453474,0.15131696,99784.0,99783.0,0.04108]
[1734062455874,0.15131696,99784.0,99783.0,0.04008]
[1734062456567,0.301165,99784.0,99783.0,0.03808]
[1734062456772,0.301165,99784.0,99783.0,0.03908]